fUST/lending_fUST_20240327
["ID","MTS","AMOUNT","RATE_DAILY","PERIOD"]
[320635255,1711481930766,-500.0,0.00019178,2]
[320635256,1711481930799,-500.0,0.00019178,2]
[320635257,1711481930833,-500.0,0.00019178,2]
[320635258,1711481930865,-500.0,0.00019178,2]
[320635259,1711481930896,-500.0,0.00019178,2]
[320635260,1711481930928,-500.0,0.00019178,2]
[320635261,1711481930961,-500.0,0.00019178,2]
[320635262,1711481930994,-908.37,0.00019178,2]
[320635263,1711481931027,-500.0,0.00019178,2]
[320635264,1711481931060,-500.0,0.00019178,2]
[320635265,1711481931092,-500.0,0.00019178,2]
[320635266,1711481931125,-500.0,0.00019178,2]
[320635267,1711481931158,-500.0,0.00019178,2]
[320635268,1711481931190,-500.0,0.00019178,2]
[320635269,1711481931225,-500.0,0.00019178,2]
[320635270,1711481931257,-500.0,0.00019178,2]
[320635271,1711481931291,-1375.16,0.00019178,2]
[320635272,1711481953362,-3226.99230892,0.00019177,2]
[320635273,1711481953394,-29752.58174302,0.00019177,2]
[320635274,1711481953427,-500.0,0.00019178,2]
[320635275,1711481953459,-500.0,0.00019178,2]
[320635276,1711481953491,-500.0,0.00019178,2]
[320635277,1711481953523,-233.00409566,0.00019178,2]
[320635278,1711481953555,-74.8437048,0.00019178,2]
[320635279,1711482015377,633.7028389,0.00018411,2]
[320635280,1711482188184,5496.0,0.0002556,90]
[320635281,1711482294746,318.527072,0.00018183,2]
[320635284,1711482437094,24900.0,0.00018177,2]
[320635288,1711482462216,1892.2421869,0.00025548,120]
[320635377,1711482638488,-713.59,0.00018899,2]
[320635878,1711482643687,-2513.40230892,0.00018899,2]
[320635880,1711482643697,-1807.48410553,0.000189,2]
[320635882,1711482643706,-167.22332137,0.00019078,2]
[320635905,1711482643902,-651.12736053,0.00019174,2]
[320635914,1711482643985,-872.37246865,0.00019174,2]
[320635916,1711482643994,-29752.58174302,0.00019176,2]
[320635918,1711482644003,-500.0,0.00019178,2]
[320635920,1711482644013,-500.0,0.00019178,2]
[320635922,1711482644022,-500.0,0.00019178,2]
[320635924,1711482644031,-628.06565498,0.00019178,2]
[320635926,1711482644040,-573.42,0.00019178,2]
[320635928,1711482644049,-500.0,0.00019178,2]
[320635930,1711482644058,-500.0,0.00019178,2]
[320635932,1711482644067,-500.0,0.00019178,2]
[320635934,1711482644076,-500.0,0.00019178,2]
[320635936,1711482644085,-500.0,0.00019178,2]
[320635938,1711482644094,-793.55,0.00019178,2]
[320635940,1711482644103,-500.0,0.00019178,2]
[320635942,1711482644112,-500.0,0.00019178,2]
[320635944,1711482644121,-500.0,0.00019178,2]
[320635946,1711482644131,-500.0,0.00019178,2]
[320635948,1711482644140,-500.0,0.00019178,2]
[320635950,1711482644148,-500.0,0.00019178,2]
[320635952,1711482644159,-500.0,0.00019178,2]
[320635954,1711482644169,-500.0,0.00019178,2]
[320635956,1711482644178,-730.78,0.00019178,2]
[320635958,1711482644188,-500.0,0.00019178,2]
[320635961,1711482644201,-1153.75,0.00019178,2]
[320635963,1711482644211,-761.07,0.00019178,2]
[320635965,1711482644221,-524.39,0.00019178,2]
[320635967,1711482644230,-500.0,0.00019178,2]
[320635969,1711482644240,-500.0,0.00019178,2]
[320635971,1711482644249,-500.0,0.00019178,2]
[320635972,1711482644258,-500.0,0.00019178,2]
[320635974,1711482644267,-500.0,0.00019178,2]
[320635976,1711482644276,-500.0,0.00019178,2]
[320635978,1711482644285,-675.54,0.00019178,2]
[320635980,1711482644295,-500.0,0.00019178,2]
[320635982,1711482644305,-665.99,0.00019178,2]
[320635985,1711482644314,-500.0,0.00019178,2]
[320635986,1711482644323,-500.0,0.00019178,2]
[320635988,1711482644332,-500.0,0.00019178,2]
[320635990,1711482644342,-500.0,0.00019178,2]
[320635992,1711482644350,-461.43468464,0.00019178,2]
[320635994,1711482644360,-500.0,0.00019178,2]
[320635996,1711482644369,-500.0,0.00019178,2]
[320635998,1711482644378,-500.0,0.00019178,2]
[320636000,1711482644387,-123.38679703,0.00019178,2]
[320637330,1711482841019,159.263536,0.00018177,2]
[320637337,1711482880814,155.2297873,0.00025526,120]
[320637338,1711482996996,24900.0,0.00018107,2]
[320637345,1711483347197,159.263536,0.00018038,2]
[320637346,1711483628386,24900.0,0.00018038,2]
[320637395,1711483832673,-155.01085076,0.00018814,2]
[320637397,1711483832682,-3226.99230892,0.00018815,2]
[320637398,1711483832694,-95.29684032,0.00018816,2]
[320637458,1711483838744,-1904.70315968,0.00018816,2]
[320637460,1711483838754,-155.00930056,0.00018899,2]
[320637462,1711483838763,-1427.68489407,0.000189,2]
[320637464,1711483838772,-251.6989718,0.00018997,2]
[320637466,1711483838782,-14491.66665154,0.00019078,2]
[320637468,1711483838791,-29752.58174302,0.00019176,2]
[320637470,1711483838801,-1610.35282495,0.00019177,2]
[320637473,1711483838810,-500.0,0.00019178,2]
[320637475,1711483838819,-167.03222608,0.00019178,2]
[320637479,1711483838831,-332.96777392,0.00019178,2]
[320637482,1711483838841,-500.0,0.00019178,2]
[320637484,1711483838854,-500.0,0.00019178,2]
[320637486,1711483838863,-604.07,0.00019178,2]
[320637488,1711483838872,-500.0,0.00019178,2]
[320637490,1711483838881,-216.98720006,0.00019178,2]
[320637505,1711483839023,-283.01279994,0.00019178,2]
[320637507,1711483839033,-500.0,0.00019178,2]
[320637509,1711483839042,-500.0,0.00019178,2]
[320637511,1711483839051,-689.11,0.00019178,2]
[320637513,1711483839060,-500.0,0.00019178,2]
[320637515,1711483839069,-500.0,0.00019178,2]
[320637517,1711483839079,-3060.39,0.00019178,2]
[320637519,1711483839089,-500.0,0.00019178,2]
[320637521,1711483839098,-500.0,0.00019178,2]
[320637523,1711483839108,-500.0,0.00019178,2]
[320637525,1711483839117,-365.15571654,0.00019178,2]
[320637527,1711483839126,-500.0,0.00019178,2]
[320637529,1711483839135,-2175.39,0.00019178,2]
[320637531,1711483839144,-500.0,0.00019178,2]
[320637533,1711483839154,-500.0,0.00019178,2]
[320637535,1711483839164,-500.0,0.00019178,2]
[320637537,1711483839173,-500.0,0.00019178,2]
[320637539,1711483839182,-500.0,0.00019178,2]
[320637540,1711483839191,-500.0,0.00019178,2]
[320637542,1711483839201,-500.0,0.00019178,2]
[320637544,1711483839210,-500.0,0.00019178,2]
[320637546,1711483839220,-500.0,0.00019178,2]
[320637548,1711483839228,-415.6319209,0.00019178,2]
[320637551,1711483839240,-467.2580791,0.00019178,2]
[320637553,1711483839250,-503.86153279,0.00019178,2]
[320637555,1711483839259,-500.0,0.00019178,2]
[320637557,1711483839268,-500.0,0.00019178,2]
[320637559,1711483839278,-500.0,0.00019178,2]
[320637561,1711483839288,-210.37824709,0.00019178,2]
[320637698,1711483840775,-289.62175291,0.00019178,2]
[320637701,1711483840786,-500.0,0.00019178,2]
[320637703,1711483840796,-500.0,0.00019178,2]
[320637705,1711483840806,-500.0,0.00019178,2]
[320637706,1711483840815,-500.0,0.00019178,2]
[320637709,1711483840825,-870.52,0.00019178,2]
[320637711,1711483840834,-500.0,0.00019178,2]
[320637712,1711483840844,-500.0,0.00019178,2]
[320637714,1711483840853,-500.0,0.00019178,2]
[320637716,1711483840868,-500.0,0.00019178,2]
[320637718,1711483840877,-500.0,0.00019178,2]
[320637720,1711483840886,-500.0,0.00019178,2]
[320637722,1711483840895,-500.0,0.00019178,2]
[320637724,1711483840907,-500.0,0.00019178,2]
[320637726,1711483840917,-500.0,0.00019178,2]
[320637728,1711483840926,-500.0,0.00019178,2]
[320637731,1711483840937,-1317.86,0.00019178,2]
[320637732,1711483840947,-766.92,0.00019178,2]
[320637734,1711483840957,-507.54420225,0.00019178,2]
[320637736,1711483840966,-521.41,0.00019178,2]
[320637739,1711483840976,-460.98631436,0.00019178,2]
[320638030,1711483843909,-39.01368564,0.00019178,2]
[320638032,1711483843919,-518.59,0.00019178,2]
[320638034,1711483843927,-569.33540959,0.00019178,2]
[320638036,1711483843937,-500.0,0.00019178,2]
[320638038,1711483843946,-342.29952992,0.00019178,2]
[320638041,1711483843965,-157.70047008,0.00019178,2]
[320638043,1711483843974,-500.0,0.00019178,2]
[320638045,1711483843983,-500.0,0.00019178,2]
[320638047,1711483843992,-195.48838065,0.00019178,2]
[320638049,1711483844001,-500.0,0.00019178,2]
[320638051,1711483844011,-500.0,0.00019178,2]
[320638053,1711483844020,-634.83,0.00019178,2]
[320638055,1711483844030,-500.0,0.00019178,2]
[320638057,1711483844039,-500.0,0.00019178,2]
[320638059,1711483844048,-469.8942571,0.00019178,2]
[320638061,1711483844058,-500.0,0.00019178,2]
[320638063,1711483844067,-3190.31,0.00019178,2]
[320638065,1711483844076,-500.0,0.00019178,2]
[320638067,1711483844085,-500.0,0.00019178,2]
[320638069,1711483844094,-500.0,0.00019178,2]
[320638071,1711483844103,-500.0,0.00019178,2]
[320638073,1711483844112,-478.04735009,0.00019178,2]
[320638075,1711483844122,-500.0,0.00019178,2]
[320638077,1711483844131,-500.0,0.00019178,2]
[320638079,1711483844140,-608.12,0.00019178,2]
[320638081,1711483844149,-697.12,0.00019178,2]
[320638083,1711483844161,-500.0,0.00019178,2]
[320638085,1711483844169,-500.0,0.00019178,2]
[320638087,1711483844178,-500.0,0.00019178,2]
[320638089,1711483844187,-500.0,0.00019178,2]
[320638091,1711483844196,-500.0,0.00019178,2]
[320638093,1711483844205,-500.0,0.00019178,2]
[320638095,1711483844215,-380.90518397,0.00019178,2]
[320638097,1711483844224,-500.0,0.00019178,2]
[320638099,1711483844233,-500.0,0.00019178,2]
[320638101,1711483844242,-500.0,0.00019178,2]
[320638103,1711483844252,-589.18,0.00019178,2]
[320638105,1711483844261,-643.43,0.00019178,2]
[320638107,1711483844270,-500.0,0.00019178,2]
[320638109,1711483844280,-500.0,0.00019178,2]
[320638111,1711483844289,-750.17,0.00019178,2]
[320638113,1711483844299,-500.0,0.00019178,2]
[320638115,1711483844308,-500.0,0.00019178,2]
[320638117,1711483844317,-500.0,0.00019178,2]
[320638119,1711483844326,-500.0,0.00019178,2]
[320638121,1711483844335,-500.0,0.00019178,2]
[320638123,1711483844344,-500.0,0.00019178,2]
[320638125,1711483844353,-500.0,0.00019178,2]
[320638127,1711483844362,-500.0,0.00019178,2]
[320638129,1711483844371,-667.97,0.00019178,2]
[320638131,1711483844381,-500.0,0.00019178,2]
[320638133,1711483844389,-500.0,0.00019178,2]
[320638134,1711483844398,-500.0,0.00019178,2]
[320638137,1711483844411,-500.0,0.00019178,2]
[320638139,1711483844420,-478.40273534,0.00019178,2]
[320638141,1711483844429,-500.0,0.00019178,2]
[320638143,1711483844438,-691.82,0.00019178,2]
[320638144,1711483844448,-500.0,0.00019178,2]
[320638147,1711483844457,-500.0,0.00019178,2]
[320638149,1711483844466,-500.0,0.00019178,2]
[320638151,1711483844475,-586.05,0.00019178,2]
[320638152,1711483844485,-500.0,0.00019178,2]
[320638154,1711483844494,-570.87995414,0.00019178,2]
[320638156,1711483844503,-500.0,0.00019178,2]
[320638159,1711483844514,-500.0,0.00019178,2]
[320638161,1711483844525,-561.67,0.00019178,2]
[320638162,1711483844534,-943.49,0.00019178,2]
[320638164,1711483844543,-500.0,0.00019178,2]
[320638167,1711483844554,-201.73818595,0.00019178,2]
[320638169,1711483844563,-500.0,0.00019178,2]
[320638171,1711483844573,-500.0,0.00019178,2]
[320638173,1711483844582,-500.0,0.00019178,2]
[320638175,1711483844591,-591.5,0.00019178,2]
[320638177,1711483844600,-500.0,0.00019178,2]
[320638179,1711483844610,-1197.96,0.00019178,2]
[320638181,1711483844619,-500.0,0.00019178,2]
[320638183,1711483844628,-733.39,0.00019178,2]
[320638185,1711483844638,-500.0,0.00019178,2]
[320638187,1711483844647,-500.0,0.00019178,2]
[320638189,1711483844659,-500.0,0.00019178,2]
[320638191,1711483844667,-456.68061786,0.00019178,2]
[320638193,1711483844676,-228.14350573,0.00019178,2]
[320638195,1711483844685,-500.0,0.00019178,2]
[320638197,1711483844694,-500.0,0.00019178,2]
[320638199,1711483844702,-500.0,0.00019178,2]
[320638201,1711483844711,-500.0,0.00019178,2]
[320638203,1711483844720,-882.32,0.00019178,2]
[320638205,1711483844729,-500.0,0.00019178,2]
[320638207,1711483844738,-500.0,0.00019178,2]
[320638209,1711483844747,-500.0,0.00019178,2]
[320638211,1711483844756,-500.0,0.00019178,2]
[320638213,1711483844765,-500.0,0.00019178,2]
[320638215,1711483844774,-500.0,0.00019178,2]
[320638217,1711483844784,-500.0,0.00019178,2]
[320638219,1711483844793,-1336.88,0.00019178,2]
[320638221,1711483844802,-500.0,0.00019178,2]
[320638223,1711483844811,-752.26,0.00019178,2]
[320638225,1711483844820,-1116.85,0.00019178,2]
[320638227,1711483844829,-525.49,0.00019178,2]
[320638229,1711483844838,-1029.08,0.00019178,2]
[320638231,1711483844851,-616.11,0.00019178,2]
[320638233,1711483844860,-500.0,0.00019178,2]
[320638235,1711483844869,-2023.51,0.00019178,2]
[320638237,1711483844878,-500.0,0.00019178,2]
[320638239,1711483844888,-500.0,0.00019178,2]
[320638241,1711483844896,-500.0,0.00019178,2]
[320638243,1711483844907,-500.0,0.00019178,2]
[320638245,1711483844916,-500.0,0.00019178,2]
[320638247,1711483844925,-2065.54,0.00019178,2]
[320638249,1711483844935,-843.57,0.00019178,2]
[320638251,1711483844945,-500.0,0.00019178,2]
[320638253,1711483844954,-3261.08,0.00019178,2]
[320638255,1711483844963,-696.65,0.00019178,2]
[320638257,1711483844972,-500.0,0.00019178,2]
[320638259,1711483844981,-549.53,0.00019178,2]
[320638261,1711483844989,-500.0,0.00019178,2]
[320638263,1711483844998,-500.0,0.00019178,2]
[320638265,1711483845007,-591.37,0.00019178,2]
[320638267,1711483845017,-500.0,0.00019178,2]
[320638269,1711483845027,-500.0,0.00019178,2]
[320638271,1711483845036,-500.0,0.00019178,2]
[320638273,1711483845045,-373.33057356,0.00019178,2]
[320638275,1711483845054,-500.0,0.00019178,2]
[320638277,1711483845063,-500.0,0.00019178,2]
[320638279,1711483845073,-3016.95,0.00019178,2]
[320638281,1711483845082,-500.0,0.00019178,2]
[320638283,1711483845091,-500.0,0.00019178,2]
[320638285,1711483845100,-760.48,0.00019178,2]
[320638287,1711483845109,-500.0,0.00019178,2]
[320638289,1711483845118,-500.0,0.00019178,2]
[320638291,1711483845127,-500.0,0.00019178,2]
[320638293,1711483845136,-602.2,0.00019178,2]
[320638295,1711483845146,-500.0,0.00019178,2]
[320638297,1711483845156,-500.0,0.00019178,2]
[320638299,1711483845165,-500.0,0.00019178,2]
[320638301,1711483845174,-721.83,0.00019178,2]
[320638303,1711483845183,-570.53,0.00019178,2]
[320638305,1711483845192,-500.0,0.00019178,2]
[320638307,1711483845201,-2784.13,0.00019178,2]
[320638309,1711483845211,-500.0,0.00019178,2]
[320638311,1711483845220,-944.38,0.00019178,2]
[320638313,1711483845229,-2608.63,0.00019178,2]
[320638315,1711483845239,-500.0,0.00019178,2]
[320638317,1711483845248,-10420.06,0.00019178,2]
[320638319,1711483845257,-729.36,0.00019178,2]
[320638321,1711483845266,-1541.11,0.00019178,2]
[320638323,1711483845275,-1570.92,0.00019178,2]
[320638325,1711483845284,-500.0,0.00019178,2]
[320638327,1711483845293,-500.0,0.00019178,2]
[320638329,1711483845302,-500.0,0.00019178,2]
[320638331,1711483845311,-500.0,0.00019178,2]
[320638333,1711483845321,-411.17693521,0.00019178,2]
[320638335,1711483845329,-700.33,0.00019178,2]
[320638337,1711483845339,-952.16,0.00019178,2]
[320638339,1711483845351,-500.0,0.00019178,2]
[320638341,1711483845360,-449.85358493,0.00019178,2]
[320638343,1711483845370,-2494.2,0.00019178,2]
[320638345,1711483845379,-500.0,0.00019178,2]
[320638347,1711483845388,-500.0,0.00019178,2]
[320638349,1711483845397,-3309.76,0.00019178,2]
[320638351,1711483845407,-500.0,0.00019178,2]
[320638353,1711483845416,-728.52,0.00019178,2]
[320638355,1711483845425,-1105.67,0.00019178,2]
[320638357,1711483845435,-500.0,0.00019178,2]
[320638359,1711483845445,-500.0,0.00019178,2]
[320638361,1711483845455,-581.34,0.00019178,2]
[320638374,1711483845558,-500.0,0.00019178,2]
[320638376,1711483845567,-500.0,0.00019178,2]
[320638378,1711483845576,-500.0,0.00019178,2]
[320638380,1711483845585,-33902.03,0.00019178,2]
[320638382,1711483845594,-4521.34,0.00019178,2]
[320638384,1711483845603,-502.54,0.00019178,2]
[320638386,1711483845611,-621.61,0.00019178,2]
[320638387,1711483845620,-1374.34,0.00019178,2]
[320638390,1711483845630,-35341.05,0.00019178,2]
[320638392,1711483845639,-500.0,0.00019178,2]
[320638394,1711483845648,-500.0,0.00019178,2]
[320638395,1711483845659,-553.74,0.00019178,2]
[320638398,1711483845669,-500.0,0.00019178,2]
[320638400,1711483845678,-667.2,0.00019178,2]
[320638402,1711483845687,-1409.27,0.00019178,2]
[320638404,1711483845695,-852.93,0.00019178,2]
[320638405,1711483845705,-6538.41,0.00019178,2]
[320638408,1711483845714,-838.32,0.00019178,2]
[320638410,1711483845724,-8074.33,0.00019178,2]
[320638412,1711483845733,-5401.47,0.00019178,2]
[320638414,1711483845743,-283.8008401,0.00019178,2]
[320644151,1711484007497,1500.0,0.000185,2]
[320644251,1711484415886,620.68514195,0.00018365,2]
[320644252,1711484671085,10000.0,0.000185,2]
[320644253,1711484685214,2548.43,0.000185,2]
[320644269,1711485031854,-489.9999995,0.00018899,2]
[320644921,1711485043300,-2736.99230942,0.00018899,2]
[320644923,1711485043309,-1047.01838366,0.000189,2]
[320644925,1711485043319,-330.94663677,0.00019077,2]
[320644927,1711485043329,-330.94663677,0.00019077,2]
[320644930,1711485043339,-330.94663677,0.00019078,2]
[320644931,1711485043348,-330.94663677,0.00019078,2]
[320644933,1711485043357,-330.94663677,0.00019078,2]
[320644935,1711485043366,-6371.27929767,0.00019078,2]
[320644937,1711485043375,-205.33441189,0.00019174,2]
[320644939,1711485043385,-1352.99786362,0.00019174,2]
[320644941,1711485043395,-2603.73287062,0.00019174,2]
[320644943,1711485043404,-252.13744437,0.00019174,2]
[320644945,1711485043414,-600.10730256,0.00019174,2]
[320644948,1711485043424,-1573.23423762,0.00019175,2]
[320644950,1711485043434,-29752.58174302,0.00019176,2]
[320644951,1711485043443,-155.07133672,0.00019177,2]
[320644953,1711485043453,-500.0,0.00019178,2]
[320644955,1711485043462,-500.0,0.00019178,2]
[320644957,1711485043471,-500.0,0.00019178,2]
[320644960,1711485043481,-500.0,0.00019178,2]
[320644962,1711485043490,-500.0,0.00019178,2]
[320644964,1711485043501,-500.0,0.00019178,2]
[320644966,1711485043511,-500.0,0.00019178,2]
[320644967,1711485043520,-500.0,0.00019178,2]
[320644969,1711485043529,-500.0,0.00019178,2]
[320644971,1711485043538,-272.73808678,0.00019178,2]
[320644973,1711485043547,-500.0,0.00019178,2]
[320644976,1711485043558,-500.0,0.00019178,2]
[320644978,1711485043567,-564.63,0.00019178,2]
[320644979,1711485043576,-500.0,0.00019178,2]
[320644981,1711485043585,-616.62,0.00019178,2]
[320644983,1711485043594,-500.0,0.00019178,2]
[320644985,1711485043603,-500.0,0.00019178,2]
[320644987,1711485043612,-500.0,0.00019178,2]
[320644989,1711485043621,-500.0,0.00019178,2]
[320644991,1711485043630,-500.0,0.00019178,2]
[320644993,1711485043639,-500.0,0.00019178,2]
[320644995,1711485043648,-500.0,0.00019178,2]
[320644997,1711485043657,-500.0,0.00019178,2]
[320644999,1711485043665,-502.62452033,0.00019178,2]
[320645001,1711485043675,-662.99,0.00019178,2]
[320645003,1711485043685,-500.0,0.00019178,2]
[320645005,1711485043694,-500.0,0.00019178,2]
[320645007,1711485043703,-498.68921959,0.00019178,2]
[320645009,1711485043712,-500.0,0.00019178,2]
[320645011,1711485043721,-500.0,0.00019178,2]
[320645013,1711485043730,-538.27,0.00019178,2]
[320645015,1711485043739,-904.18,0.00019178,2]
[320645017,1711485043748,-253.77513791,0.00019178,2]
[320645019,1711485043758,-511.29449955,0.00019178,2]
[320645021,1711485043767,-500.0,0.00019178,2]
[320645023,1711485043776,-500.0,0.00019178,2]
[320645025,1711485043785,-500.0,0.00019178,2]
[320645027,1711485043796,-500.0,0.00019178,2]
[320645029,1711485043806,-500.0,0.00019178,2]
[320645030,1711485043816,-500.0,0.00019178,2]
[320645033,1711485043825,-500.0,0.00019178,2]
[320645035,1711485043835,-500.0,0.00019178,2]
[320645036,1711485043844,-500.0,0.00019178,2]
[320645039,1711485043853,-500.0,0.00019178,2]
[320645040,1711485043863,-365.38817253,0.00019178,2]
[320645042,1711485043872,-986.2,0.00019178,2]
[320645044,1711485043882,-500.0,0.00019178,2]
[320645046,1711485043891,-500.0,0.00019178,2]
[320645048,1711485043901,-500.0,0.00019178,2]
[320645051,1711485043911,-500.0,0.00019178,2]
[320645053,1711485043920,-500.0,0.00019178,2]
[320645055,1711485043929,-808.42,0.00019178,2]
[320645056,1711485043939,-500.0,0.00019178,2]
[320645058,1711485043949,-720.91,0.00019178,2]
[320645060,1711485043959,-500.0,0.00019178,2]
[320645062,1711485043969,-507.37616286,0.00019178,2]
[320645064,1711485043978,-526.63,0.00019178,2]
[320645066,1711485043988,-500.0,0.00019178,2]
[320645068,1711485043998,-500.0,0.00019178,2]
[320645070,1711485044008,-500.0,0.00019178,2]
[320645072,1711485044017,-500.0,0.00019178,2]
[320645074,1711485044027,-601.7508309,0.00019178,2]
[320645076,1711485044036,-728.8,0.00019178,2]
[320645079,1711485044046,-500.0,0.00019178,2]
[320645080,1711485044055,-500.0,0.00019178,2]
[320645083,1711485044065,-500.0,0.00019178,2]
[320645084,1711485044074,-500.0,0.00019178,2]
[320645087,1711485044084,-500.0,0.00019178,2]
[320645089,1711485044093,-1148.05,0.00019178,2]
[320645091,1711485044103,-582.79,0.00019178,2]
[320645092,1711485044111,-500.0,0.00019178,2]
[320645094,1711485044120,-500.0,0.00019178,2]
[320645096,1711485044130,-500.0,0.00019178,2]
[320645098,1711485044139,-500.0,0.00019178,2]
[320645100,1711485044148,-500.0,0.00019178,2]
[320645102,1711485044157,-500.0,0.00019178,2]
[320645104,1711485044166,-500.0,0.00019178,2]
[320645106,1711485044175,-500.0,0.00019178,2]
[320645108,1711485044185,-500.0,0.00019178,2]
[320645111,1711485044195,-640.14,0.00019178,2]
[320645113,1711485044204,-500.0,0.00019178,2]
[320645114,1711485044215,-718.91,0.00019178,2]
[320645116,1711485044223,-500.0,0.00019178,2]
[320645118,1711485044233,-671.15,0.00019178,2]
[320645120,1711485044244,-500.0,0.00019178,2]
[320645122,1711485044253,-500.0,0.00019178,2]
[320645124,1711485044262,-698.97,0.00019178,2]
[320645126,1711485044271,-590.44,0.00019178,2]
[320645128,1711485044281,-566.86,0.00019178,2]
[320645130,1711485044290,-561.63,0.00019178,2]
[320645132,1711485044299,-500.0,0.00019178,2]
[320645134,1711485044308,-702.83,0.00019178,2]
[320645136,1711485044317,-500.0,0.00019178,2]
[320645138,1711485044327,-500.0,0.00019178,2]
[320645140,1711485044336,-500.0,0.00019178,2]
[320645142,1711485044346,-500.0,0.00019178,2]
[320645144,1711485044354,-327.32704762,0.00019178,2]
[320645146,1711485044363,-1059.6,0.00019178,2]
[320645148,1711485044373,-500.0,0.00019178,2]
[320645150,1711485044382,-1070.32,0.00019178,2]
[320645152,1711485044391,-639.4,0.00019178,2]
[320645154,1711485044400,-500.0,0.00019178,2]
[320645156,1711485044410,-500.0,0.00019178,2]
[320645158,1711485044420,-578.66,0.00019178,2]
[320645160,1711485044429,-1939.19,0.00019178,2]
[320645162,1711485044442,-845.56,0.00019178,2]
[320645164,1711485044451,-500.0,0.00019178,2]
[320645166,1711485044460,-817.39,0.00019178,2]
[320645168,1711485044469,-226.36965028,0.00019178,2]
[320645170,1711485044478,-2829.99,0.00019178,2]
[320645171,1711485044487,-500.0,0.00019178,2]
[320645173,1711485044496,-500.0,0.00019178,2]
[320645175,1711485044505,-500.0,0.00019178,2]
[320645177,1711485044514,-1281.17,0.00019178,2]
[320645180,1711485044524,-3125.2,0.00019178,2]
[320645181,1711485044533,-676.76,0.00019178,2]
[320645183,1711485044542,-500.0,0.00019178,2]
[320645185,1711485044552,-500.0,0.00019178,2]
[320645187,1711485044561,-500.0,0.00019178,2]
[320645189,1711485044571,-500.0,0.00019178,2]
[320645192,1711485044581,-500.0,0.00019178,2]
[320645194,1711485044591,-566.73,0.00019178,2]
[320645196,1711485044601,-500.0,0.00019178,2]
[320645197,1711485044611,-500.0,0.00019178,2]
[320645200,1711485044621,-500.0,0.00019178,2]
[320645202,1711485044630,-500.0,0.00019178,2]
[320645204,1711485044639,-183.33239985,0.00019178,2]
[320645216,1711485044749,-2891.24,0.00019178,2]
[320645218,1711485044759,-667.62,0.00019178,2]
[320645220,1711485044768,-500.0,0.00019178,2]
[320645222,1711485044777,-500.0,0.00019178,2]
[320645224,1711485044786,-500.0,0.00019178,2]
[320645226,1711485044795,-530.67,0.00019178,2]
[320645228,1711485044805,-500.0,0.00019178,2]
[320645230,1711485044814,-500.0,0.00019178,2]
[320645232,1711485044823,-578.9,0.00019178,2]
[320645234,1711485044832,-2668.13,0.00019178,2]
[320645236,1711485044841,-500.0,0.00019178,2]
[320645238,1711485044850,-500.0,0.00019178,2]
[320645240,1711485044859,-500.0,0.00019178,2]
[320645242,1711485044868,-660.39,0.00019178,2]